bitfinex/quotes_BTCUSD_20251021
["timestamp","ask_amount","ask_price","bid_price","bid_amount"]
[1761057181676,0.19078187,110090.0,110070.0,0.86918552]
[1761057181895,0.00908182,110110.0,110080.0,0.74782552]
[1761057182122,0.18163654,110110.0,110090.0,0.86918552]
[1761057182325,0.18163654,110110.0,110090.0,0.12136]
[1761057182546,0.18165304,110100.0,110090.0,0.12136]
[1761057182766,0.18166954,110090.0,110080.0,0.00014651]
[1761057183187,0.18166954,110090.0,110080.0,0.12146651]
[1761057183394,0.52166954,110090.0,110080.0,0.12146651]
[1761057183634,1.30567734,110090.0,110080.0,1e-08]
[1761057183879,4.42699734,110090.0,110080.0,1e-08]
[1761057184086,4.43699733,110090.0,110080.0,1e-08]
[1761057184493,0.5778683,110080.0,110070.0,1e-08]
[1761057184708,4.32569382,110080.0,110070.0,1e-08]
[1761057184938,3.59741613,110080.0,110070.0,1e-08]
[1761057185429,3.62474651,110080.0,110070.0,1e-08]
[1761057185835,3.62674651,110080.0,110070.0,1e-08]
[1761057186406,3.62874651,110080.0,110070.0,1e-08]
[1761057186836,3.62674651,110080.0,110070.0,1e-08]
[1761057187204,3.62874651,110080.0,110070.0,1e-08]
[1761057187416,3.62674651,110080.0,110070.0,1e-08]
[1761057187604,0.62674651,110080.0,110070.0,1e-08]
[1761057187787,3.62874651,110080.0,110070.0,1e-08]
[1761057188089,3.62674651,110080.0,110070.0,1e-08]
[1761057188625,3.62474651,110080.0,110070.0,1e-08]
[1761057188797,3.62674651,110080.0,110070.0,1e-08]
[1761057189000,3.62774651,110080.0,110070.0,1e-08]
[1761057189420,3.74702651,110080.0,110070.0,1e-08]
[1761057189626,3.74902651,110080.0,110070.0,1e-08]
[1761057190659,3.62774651,110080.0,110070.0,1e-08]
[1761057190821,3.74902651,110080.0,110070.0,1e-08]
[1761057191839,3.73902652,110080.0,110070.0,1e-08]
[1761057193150,3.74902651,110080.0,110070.0,1e-08]
[1761057193564,3.73898652,110080.0,110070.0,1e-08]
[1761057194175,3.75323832,110080.0,110070.0,1e-08]
[1761057194392,3.63199832,110080.0,110070.0,1e-08]
[1761057194593,3.61774652,110080.0,110070.0,1e-08]
[1761057194926,3.73898652,110080.0,110070.0,1e-08]
[1761057195329,3.74898651,110080.0,110070.0,1e-08]
[1761057198224,3.73898652,110080.0,110070.0,1e-08]
[1761057198474,3.27774652,110080.0,110070.0,1e-08]
[1761057198688,3.39894652,110080.0,110070.0,1e-08]
[1761057198875,3.73894652,110080.0,110070.0,1e-08]
[1761057199243,3.75319845,110080.0,110070.0,1e-08]
[1761057199869,3.23156425,110080.0,110070.0,1e-08]
[1761057200182,3.20423387,110080.0,110070.0,1e-08]
[1761057200412,0.18468604,110080.0,110070.0,1e-08]
[1761057200760,0.18168604,110080.0,110070.0,1e-08]
[1761057200966,0.18268604,110080.0,110070.0,1e-08]
[1761057201171,0.002,110080.0,110070.0,1e-08]
[1761057201400,0.002,110080.0,110070.0,0.1312]
[1761057201401,0.001,110080.0,110070.0,0.1312]
[1761057201713,0.00034396,110090.0,110080.0,0.00999999]
[1761057202088,0.00034396,110090.0,110080.0,0.04078628]
[1761057202295,0.1820135,110090.0,110080.0,0.00999999]
[1761057202494,0.18168604,110080.0,110070.0,0.1312]
[1761057202698,0.1820135,110090.0,110080.0,0.00999999]
[1761057202862,0.18168604,110080.0,110070.0,0.88002552]
[1761057203060,0.18168604,110080.0,110070.0,0.011]
[1761057203717,0.18168604,110080.0,110070.0,0.00100001]
[1761057203883,0.18168604,110080.0,110070.0,1e-08]
[1761057204520,0.52168604,110080.0,110070.0,1e-08]
[1761057205929,4.3272572,110080.0,110070.0,1e-08]
[1761057206595,0.57943168,110080.0,110070.0,1e-08]
[1761057206801,0.38708286,110080.0,110070.0,1e-08]
[1761057207007,0.18368604,110080.0,110070.0,1e-08]
[1761057207210,0.18168604,110080.0,110070.0,1e-08]
[1761057207527,0.18368604,110080.0,110070.0,1e-08]
[1761057207971,0.18168604,110080.0,110070.0,1e-08]
[1761057208173,0.1820135,110090.0,110070.0,1e-08]
[1761057208376,0.83150152,110110.0,110070.0,0.36817025]
[1761057208377,0.001,110080.0,110070.0,0.36817025]
[1761057208675,0.001,110080.0,110070.0,1.01518343]
[1761057208831,0.19073632,110100.0,110090.0,0.00999999]
[1761057209033,0.19073632,110100.0,110090.0,0.13107999]
[1761057209571,0.18165304,110100.0,110090.0,0.61456087]
[1761057210085,0.18163654,110110.0,110100.0,0.00999999]
[1761057210458,0.1907053,110120.0,110110.0,0.00999999]
[1761057210821,0.1907053,110120.0,110110.0,0.13107999]
[1761057211022,0.1907053,110120.0,110110.0,0.12108]
[1761057211235,0.1907053,110120.0,110110.0,0.13107999]
[1761057211646,0.1908377,110120.0,110110.0,0.61456087]
[1761057212889,0.18175245,110120.0,110110.0,0.61456087]
[1761057213693,0.0001324,110120.0,110110.0,0.61456087]
[1761057214209,0.0001324,110120.0,110110.0,0.61556087]
[1761057214423,0.0001324,110120.0,110110.0,0.13107999]
[1761057214625,0.0001324,110120.0,110110.0,1.13619741]
[1761057214833,0.00116395,110120.0,110110.0,1.13719741]
[1761057215040,0.00116395,110120.0,110110.0,0.65371653]
[1761057215244,0.00116395,110120.0,110110.0,1.13719741]
[1761057215657,0.00116395,110120.0,110110.0,0.95556087]
[1761057215895,0.00116395,110120.0,110110.0,1.13719741]
[1761057216221,0.00116395,110120.0,110110.0,0.83448087]
[1761057216433,0.00116395,110120.0,110110.0,0.95548087]
[1761057216764,0.00116395,110120.0,110110.0,1.13711741]
[1761057216981,0.00116395,110120.0,110110.0,1.13611741]
[1761057217195,0.00116395,110120.0,110110.0,1.13811741]
[1761057217369,0.00116395,110120.0,110110.0,1.13611741]
[1761057217754,0.00116395,110120.0,110110.0,1.13711741]
[1761057218182,0.00116395,110120.0,110110.0,1.13611741]
[1761057218377,0.00116395,110120.0,110110.0,1.61959829]
[1761057218710,0.00116395,110120.0,110110.0,1.65578057]
[1761057219094,0.00116395,110120.0,110110.0,1.65778057]
[1761057219294,0.00116395,110120.0,110110.0,4.65778057]
[1761057219934,0.00116395,110120.0,110110.0,4.66778056]
[1761057220301,0.00116395,110120.0,110110.0,4.66578056]
[1761057220510,0.00116395,110120.0,110110.0,4.70507651]
[1761057220886,0.00116395,110120.0,110110.0,4.70307651]
[1761057221074,0.00116395,110120.0,110110.0,4.70507651]
[1761057221276,0.00116395,110120.0,110110.0,4.78319652]
[1761057221474,0.00116395,110120.0,110110.0,4.79119651]
[1761057221775,0.00116395,110120.0,110110.0,4.79419651]
[1761057222776,0.00116395,110120.0,110110.0,4.57507651]
[1761057222972,0.00116395,110120.0,110110.0,4.79415651]
[1761057226592,0.00116395,110120.0,110110.0,4.57507651]
[1761057226853,0.00116395,110120.0,110110.0,4.79411651]
[1761057229541,0.00116395,110120.0,110110.0,4.57507651]
[1761057229943,0.00116395,110120.0,110110.0,4.79403651]
[1761057230397,0.00116395,110120.0,110110.0,4.79399651]
[1761057231720,1e-08,110120.0,110110.0,4.8139965]
[1761057232050,1e-08,110120.0,110110.0,4.80399651]
[1761057232249,1e-08,110120.0,110110.0,4.79399651]
[1761057233067,1e-08,110120.0,110110.0,4.80099651]
[1761057233266,1e-08,110120.0,110110.0,4.80399651]
[1761057233536,1e-08,110120.0,110110.0,4.80395651]
[1761057233734,1e-08,110120.0,110110.0,4.57507651]
[1761057233943,1e-08,110120.0,110110.0,4.80395651]
[1761057234075,1e-08,110120.0,110110.0,4.82215651]
[1761057234479,1e-08,110120.0,110110.0,4.81215652]
[1761057234702,1e-08,110120.0,110110.0,4.82215651]
[1761057235051,1e-08,110120.0,110110.0,4.58327652]
[1761057235244,1e-08,110120.0,110110.0,3.89699741]
[1761057235450,1e-08,110120.0,110110.0,4.3704783]
[1761057235670,1e-08,110120.0,110110.0,4.72047829]
[1761057235878,1e-08,110120.0,110110.0,4.75666057]
[1761057236037,1e-08,110120.0,110110.0,4.75866057]
[1761057236243,1e-08,110120.0,110110.0,4.75566057]
[1761057236440,1e-08,110120.0,110110.0,4.75366057]
[1761057236821,1e-08,110120.0,110110.0,4.75766057]
[1761057237001,1e-08,110120.0,110110.0,4.27417969]
[1761057237214,1e-08,110120.0,110110.0,1.75766057]
[1761057237381,1e-08,110120.0,110110.0,1.75566057]
[1761057237582,1e-08,110120.0,110110.0,1.27417969]
[1761057238117,0.82361312,110140.0,110130.0,0.00999999]
[1761057238346,0.1816077,110130.0,110110.0,0.58564088]
[1761057238545,0.82410177,110140.0,110130.0,0.00999999]
[1761057238764,0.82410177,110140.0,110120.0,0.60416088]
[1761057238905,0.82410177,110140.0,110130.0,0.00999999]
[1761057239619,0.63343297,110140.0,110130.0,0.49348087]
[1761057239822,0.81502004,110140.0,110130.0,0.49448087]
[1761057240032,0.81502004,110140.0,110130.0,0.49348087]
[1761057240631,0.63343297,110140.0,110130.0,0.00999999]
[1761057240847,0.63343297,110140.0,110130.0,1.03324477]
[1761057241042,0.63343297,110140.0,110130.0,1.01508442]
[1761057241462,0.63343297,110140.0,110130.0,1.01608442]
[1761057241628,0.63343297,110140.0,110130.0,0.83448087]
[1761057241989,0.63343297,110140.0,110130.0,1.01608442]
[1761057242199,0.63343297,110140.0,110130.0,0.35099999]
[1761057242425,0.63343297,110140.0,110130.0,0.96708442]
[1761057242811,0.63343297,110140.0,110130.0,0.96508442]
[1761057243014,0.63343297,110140.0,110130.0,1.0012667]
[1761057243279,0.63343297,110140.0,110130.0,4.48674758]
[1761057243481,0.63343297,110140.0,110130.0,4.48574758]
[1761057243633,0.0002,110160.0,110150.0,0.18157058]
[1761057243996,0.0002,110160.0,110150.0,4.30747603]
[1761057244174,1e-08,110160.0,110150.0,4.32550126]
[1761057244424,1e-08,110170.0,110160.0,3.57773636]
[1761057244629,1e-08,110170.0,110160.0,4.54469813]
[1761057244817,0.00171825,110170.0,110160.0,0.77653638]
[1761057245024,0.00171825,110170.0,110160.0,1.07846316]
[1761057245221,0.00171825,110170.0,110160.0,0.71228087]
[1761057245403,0.00171825,110170.0,110160.0,0.61408087]
[1761057245606,0.00171825,110170.0,110160.0,0.95408087]
[1761057245769,0.00171825,110170.0,110160.0,1.46957346]
[1761057245972,0.00171825,110170.0,110160.0,1.65112756]
[1761057246178,0.00171825,110170.0,110160.0,1.46957346]
[1761057246388,0.00171825,110170.0,110160.0,1.47057346]
[1761057246643,0.18325587,110170.0,110160.0,0.1646117]
[1761057246799,0.18325587,110170.0,110160.0,0.13259999]
[1761057247182,0.18325587,110170.0,110160.0,0.61608087]
[1761057247778,0.18325587,110170.0,110160.0,0.13259999]
[1761057247980,0.18325587,110170.0,110160.0,0.13159999]
[1761057248314,0.18325587,110170.0,110160.0,0.64512015]
[1761057248515,0.00171825,110170.0,110160.0,0.64512015]
[1761057248717,0.18325587,110170.0,110160.0,0.64612015]
[1761057249255,0.00171825,110170.0,110160.0,0.82867425]
[1761057249469,0.00171825,110170.0,110160.0,1.31215513]
[1761057249826,0.00171825,110170.0,110160.0,0.64712015]
[1761057250052,0.18325587,110170.0,110160.0,0.13259999]
[1761057250861,0.18325587,110170.0,110160.0,0.01199999]
[1761057251076,0.18325587,110170.0,110160.0,0.002]
[1761057251283,0.18325587,110170.0,110160.0,0.12256]
[1761057251480,0.18325587,110170.0,110160.0,0.12156]
[1761057252068,0.52325587,110170.0,110160.0,0.12156]
[1761057252428,0.52325587,110170.0,110160.0,0.12056]
[1761057257488,0.18325587,110170.0,110160.0,0.13055999]
[1761057258248,0.18325587,110170.0,110160.0,0.12056]
[1761057258394,0.18325587,110170.0,110160.0,0.13055999]
[1761057258599,0.00171825,110170.0,110160.0,0.61404087]
[1761057258809,0.00171825,110170.0,110160.0,0.79559497]
[1761057259015,0.00171825,110170.0,110160.0,1.27907585]
[1761057259220,0.00171825,110170.0,110160.0,0.13055999]
[1761057259468,0.18325587,110170.0,110160.0,0.13047999]
[1761057260049,0.18325587,110170.0,110160.0,0.61496087]
[1761057260050,0.00171825,110170.0,110160.0,0.61496087]
[1761057260824,0.18325587,110170.0,110160.0,0.61496087]
[1761057261023,0.18325587,110170.0,110160.0,0.13247999]
[1761057261227,0.18325587,110170.0,110160.0,0.61596087]
[1761057261427,0.00171825,110170.0,110160.0,0.61596087]
[1761057261627,0.00171825,110170.0,110160.0,0.61496087]
[1761057261834,0.00171825,110170.0,110160.0,0.61396087]
[1761057262063,0.00171825,110170.0,110160.0,0.79651497]
[1761057262273,0.00171825,110170.0,110160.0,1.65617813]
[1761057262456,0.00171825,110170.0,110160.0,0.68921637]
[1761057262659,0.00171825,110170.0,110160.0,1.65617813]
[1761057262863,0.00171825,110170.0,110160.0,1.62099585]
[1761057263088,0.00171825,110170.0,110160.0,1.65717813]
[1761057263501,0.00171825,110170.0,110160.0,1.65617813]
[1761057263716,0.00171825,110170.0,110160.0,1.61899585]
[1761057263929,0.00171825,110170.0,110160.0,1.62095585]
[1761057264162,0.00171825,110170.0,110160.0,1.50051585]
[1761057264604,0.00171825,110170.0,110160.0,1.61891585]
[1761057264820,0.00171825,110170.0,110160.0,1.62191585]
[1761057265229,0.00171825,110170.0,110160.0,1.61991585]
[1761057265659,0.00171825,110170.0,110160.0,1.62191585]
[1761057266533,0.00171825,110170.0,110160.0,0.99306315]
[1761057266780,0.00171825,110170.0,110160.0,0.49648087]
[1761057267000,0.00171825,110170.0,110160.0,0.61688087]
[1761057267459,0.00171825,110170.0,110160.0,0.61588087]
[1761057267832,0.00171825,110170.0,110160.0,0.61688087]
[1761057268034,0.00171825,110170.0,110160.0,0.61488087]
[1761057268250,0.18325587,110170.0,110160.0,0.13139999]
[1761057268477,0.18325587,110170.0,110160.0,0.61488087]
[1761057268686,0.18325587,110170.0,110160.0,0.01099999]
[1761057268885,0.00171825,110170.0,110160.0,0.87914168]
[1761057269307,0.00171825,110170.0,110160.0,1.06069578]
[1761057269751,0.00171825,110170.0,110160.0,0.87814168]
[1761057269957,0.00171825,110170.0,110160.0,0.87714168]
[1761057270810,0.00171825,110170.0,110160.0,1.05869578]
[1761057271010,0.00171825,110170.0,110160.0,0.87814168]
[1761057271233,0.00171825,110170.0,110160.0,1.05969578]
[1761057271445,0.00171825,110170.0,110160.0,0.87814168]
[1761057271828,0.00171825,110170.0,110160.0,0.87914168]
[1761057272888,0.00171825,110170.0,110160.0,0.13235999]
[1761057273979,0.00171825,110170.0,110160.0,0.31391409]
[1761057274174,0.00171825,110170.0,110160.0,1.40069578]
[1761057274739,0.18325587,110170.0,110160.0,1.21914168]
[1761057274942,0.00171825,110170.0,110160.0,0.46236]
[1761057275145,0.18325587,110170.0,110160.0,0.13235999]
[1761057275306,0.00171825,110170.0,110160.0,0.13235999]
[1761057275509,0.18325587,110170.0,110160.0,0.13235999]
[1761057276063,0.00171825,110170.0,110160.0,0.13235999]
[1761057276440,0.00171825,110170.0,110160.0,0.87914168]
[1761057277035,0.00171825,110170.0,110160.0,0.13235999]
[1761057277235,0.00171825,110170.0,110160.0,1.06069578]
[1761057278938,0.00171825,110170.0,110160.0,0.87914168]
[1761057279561,0.00171825,110170.0,110160.0,1.06069578]
[1761057279732,0.00171825,110170.0,110160.0,1.40069578]
[1761057282270,0.00171825,110170.0,110160.0,1.43687806]
[1761057282953,0.00171825,110170.0,110160.0,1.40069578]
[1761057285898,1.0,110180.0,110160.0,1.43687806]
[1761057286108,1.0,110180.0,110170.0,4.35265533]
[1761057286109,0.42183112,110180.0,110170.0,4.35265533]
[1761057286288,0.42183112,110180.0,110170.0,4.35269157]
[1761057286504,0.42183112,110180.0,110170.0,4.34269157]
[1761057286705,0.42183112,110180.0,110170.0,4.56101157]
[1761057287235,0.06755888,110180.0,110170.0,4.56301157]
[1761057287422,0.06755888,110180.0,110170.0,4.56601157]
[1761057287782,0.06755888,110180.0,110170.0,4.56101157]
[1761057287979,0.06755888,110180.0,110170.0,4.56301157]
[1761057289097,0.06755888,110180.0,110170.0,4.54482157]
[1761057289306,0.06755888,110180.0,110170.0,4.54682157]
[1761057289522,1e-08,110180.0,110170.0,4.54682157]
[1761057290216,1e-08,110180.0,110170.0,4.31850158]
[1761057290438,1e-08,110180.0,110170.0,4.54678157]
[1761057292284,0.00034355,110180.0,110170.0,4.54678157]
[1761057294390,1e-08,110180.0,110170.0,4.54678157]
[1761057294793,1e-08,110180.0,110170.0,4.55678157]
[1761057295501,1e-08,110180.0,110170.0,4.56041817]
[1761057295703,1e-08,110180.0,110170.0,3.81363648]
[1761057295921,1e-08,110180.0,110170.0,4.56041817]
[1761057296493,1e-08,110180.0,110170.0,4.55041817]
[1761057296689,1e-08,110180.0,110170.0,4.56041817]
[1761057297738,1e-08,110180.0,110170.0,4.57860817]
[1761057298590,1e-08,110180.0,110170.0,4.57660817]
[1761057298764,1e-08,110180.0,110170.0,4.57460817]
[1761057298960,1e-08,110180.0,110170.0,4.57760817]
[1761057299167,1e-08,110180.0,110170.0,4.58060817]
[1761057299366,1e-08,110180.0,110170.0,4.57760817]
[1761057299754,1e-08,110180.0,110170.0,4.58060817]
[1761057300341,1e-08,110180.0,110170.0,4.57760817]
[1761057300746,0.0002,110220.0,110200.0,0.37618228]
[1761057301062,0.0002,110220.0,110210.0,4.46262285]
[1761057301276,1.0002,110240.0,110230.0,0.57762106]
[1761057301646,1.0002,110240.0,110230.0,1.55987818]
[1761057302051,0.58855445,110240.0,110230.0,5.31680652]
[1761057302225,0.58855445,110240.0,110230.0,4.57002483]
[1761057302582,0.58855445,110240.0,110230.0,1.56002484]
[1761057302780,0.58855445,110240.0,110230.0,1.51584257]
[1761057302979,0.58855445,110240.0,110230.0,1.52584256]
[1761057303221,0.58855445,110240.0,110230.0,4.56202484]
[1761057303379,0.58855445,110240.0,110230.0,5.30880653]
[1761057303579,0.15871894,110240.0,110230.0,5.31880652]
[1761057303807,0.15871894,110240.0,110230.0,4.57402483]
[1761057304207,1.40000028,110250.0,110240.0,0.19142234]
[1761057304408,1.15984183,110250.0,110240.0,5.14783865]
[1761057304630,0.90006479,110250.0,110240.0,5.14783865]
[1761057305189,0.90006479,110250.0,110240.0,5.12783866]
[1761057305391,0.90006479,110250.0,110240.0,4.61009696]
[1761057305599,0.90006479,110250.0,110240.0,4.52442632]
[1761057305804,0.90006479,110250.0,110240.0,4.19442631]
[1761057305996,0.90006479,110250.0,110240.0,4.14724404]
[1761057306222,0.90006479,110250.0,110240.0,4.15924403]
[1761057306439,0.90006479,110250.0,110240.0,4.90602572]
[1761057306643,0.90006479,110250.0,110240.0,4.49924403]
[1761057306892,0.90246792,110250.0,110240.0,4.53442631]
[1761057307105,0.90246792,110250.0,110240.0,4.53642631]
[1761057307254,0.90246792,110250.0,110240.0,4.53442631]
[1761057307472,0.90246792,110250.0,110240.0,5.279208]
[1761057307816,0.90246792,110250.0,110240.0,4.53342631]
[1761057307944,0.90246792,110250.0,110240.0,4.53442631]
[1761057308143,0.90246792,110250.0,110240.0,3.78764462]
[1761057308342,0.90246792,110250.0,110240.0,4.53442631]
[1761057308586,0.90246792,110250.0,110240.0,1.53442631]
[1761057308748,0.90246792,110250.0,110240.0,2.281208]
[1761057309453,0.90246792,110250.0,110240.0,1.28020403]
[1761057309672,0.90246792,110250.0,110240.0,1.21870168]
[1761057309893,0.90246792,110250.0,110240.0,0.002]
[1761057310084,0.90246792,110250.0,110240.0,1.06012403]
[1761057310288,0.90246792,110250.0,110240.0,1.40012403]
[1761057310424,0.90246792,110250.0,110240.0,1.39912403]
[1761057310627,0.90246792,110250.0,110240.0,1.20770169]
[1761057310836,0.90246792,110250.0,110240.0,0.34952462]
[1761057311037,0.90246792,110250.0,110240.0,1.09778168]
[1761057311262,0.90246792,110250.0,110240.0,0.86666169]
[1761057311661,1.08387381,110250.0,110240.0,0.87766168]
[1761057312034,1.08387381,110250.0,110240.0,0.87666168]
[1761057313454,1.08387381,110250.0,110240.0,0.12987999]
[1761057313612,1.08387381,110250.0,110240.0,0.11988]
[1761057313969,1.08387381,110250.0,110240.0,0.12987999]
[1761057314737,1.08387381,110250.0,110240.0,0.11988]
[1761057314954,0.18142235,110240.0,110230.0,0.00014666]
[1761057315131,0.18142235,110240.0,110230.0,0.12002666]
[1761057315329,0.18142235,110240.0,110230.0,0.13002665]
[1761057315603,0.18142235,110240.0,110230.0,0.12002666]
[1761057315802,0.18142235,110240.0,110230.0,0.13002665]
[1761057316120,0.18142235,110240.0,110230.0,0.12002666]
[1761057316326,0.18142235,110240.0,110230.0,0.13002665]
[1761057317312,0.18142235,110240.0,110230.0,0.87680834]
[1761057318465,0.18142235,110240.0,110230.0,0.13002665]
[1761057319307,0.18142235,110240.0,110230.0,0.12002666]
[1761057319560,0.18142235,110240.0,110230.0,0.13002665]
[1761057319715,0.18142235,110240.0,110230.0,0.12002666]
[1761057319891,0.18142235,110240.0,110230.0,0.13002665]
[1761057320115,0.18142235,110240.0,110230.0,0.01014665]
[1761057320318,0.18142235,110240.0,110230.0,0.13002665]
[1761057320521,0.18348236,110240.0,110230.0,0.13002665]
[1761057320726,0.18348236,110240.0,110230.0,0.01014665]
[1761057320924,0.18348236,110240.0,110230.0,0.13002665]
[1761057321453,0.18348236,110240.0,110230.0,0.12002666]
[1761057321779,0.18348236,110240.0,110230.0,0.13002665]
[1761057321914,0.18348236,110240.0,110230.0,0.12002666]
[1761057322114,0.18348236,110240.0,110230.0,0.13002665]
[1761057323451,0.18348236,110240.0,110230.0,0.87680834]
[1761057323603,0.18348236,110240.0,110230.0,0.13002665]
[1761057325009,0.00206001,110240.0,110230.0,1.05824714]
[1761057325223,0.00206001,110240.0,110230.0,0.87680834]
[1761057325546,0.18348236,110240.0,110230.0,0.87680834]
[1761057326374,0.18348236,110240.0,110230.0,0.87780834]
[1761057326576,0.18348236,110240.0,110230.0,0.13102665]
[1761057326982,0.18348236,110240.0,110230.0,0.13002665]
[1761057327194,0.18348236,110240.0,110230.0,0.13102665]
[1761057327721,0.18348236,110240.0,110230.0,0.13002665]
[1761057328982,0.18348236,110240.0,110230.0,0.01014665]
[1761057329194,1.00553221,110240.0,110230.0,1e-08]
[1761057329402,1.00553221,110240.0,110230.0,0.11984001]
[1761057329616,0.52348236,110240.0,110230.0,0.11984001]
[1761057332309,0.54725793,110240.0,110230.0,0.11984001]
[1761057332645,0.52348236,110240.0,110230.0,0.11984001]
[1761057333009,0.52348236,110240.0,110230.0,0.12984]
[1761057333010,0.18348236,110240.0,110230.0,0.12984]
[1761057333412,0.18348236,110240.0,110230.0,0.11984001]
[1761057333738,0.20653222,110240.0,110230.0,0.11984001]
[1761057334424,0.68858207,110240.0,110230.0,0.11984001]
[1761057334621,0.34907194,110230.0,110200.0,0.00999999]
[1761057334825,0.18152114,110180.0,110170.0,0.59012984]
[1761057335054,0.18152114,110180.0,110170.0,0.10822677]
[1761057335263,0.18151697,110200.0,110190.0,0.00999999]
[1761057335403,0.18151697,110200.0,110190.0,0.61188984]
[1761057335610,0.19059138,110200.0,110190.0,0.12983999]
[1761057336640,0.19059138,110200.0,110190.0,0.11984]
[1761057337419,0.18152114,110180.0,110170.0,0.09822678]
[1761057337619,0.18152114,110180.0,110170.0,0.22631436]
[1761057337901,0.18152114,110180.0,110170.0,0.11998678]
[1761057338199,0.18152114,110180.0,110170.0,0.13823586]
[1761057338404,0.18152114,110180.0,110170.0,0.12823587]
[1761057338626,0.18152114,110180.0,110170.0,0.13823586]
[1761057338825,0.18152114,110180.0,110170.0,0.13823261]
[1761057339361,0.18152114,110180.0,110170.0,0.12823262]
[1761057339910,0.18152114,110180.0,110170.0,0.11998678]
[1761057340050,0.18152114,110180.0,110170.0,0.12998677]
[1761057340496,0.18151942,110190.0,110180.0,0.00999999]
[1761057340691,0.18150467,110190.0,110180.0,0.00999999]
[1761057344379,0.26321583,110200.0,110190.0,0.00999999]
[1761057344608,0.26321583,110200.0,110190.0,0.11984]
[1761057344796,0.26321583,110200.0,110190.0,0.12983999]
[1761057345617,0.26421583,110200.0,110190.0,0.12983999]
[1761057345986,0.26490275,110200.0,110190.0,0.11984]
[1761057346184,0.26490275,110200.0,110190.0,0.12983999]
[1761057346791,0.17508374,110200.0,110190.0,0.61188984]
[1761057346994,0.17508374,110200.0,110190.0,0.12983999]
[1761057348894,0.17508374,110200.0,110190.0,0.11984]
[1761057349409,0.17508374,110200.0,110190.0,0.12983999]
[1761057349750,0.17508374,110200.0,110190.0,0.11984]
[1761057350413,0.17508374,110200.0,110190.0,0.12983999]
[1761057352418,0.17508374,110200.0,110190.0,0.11984]
[1761057352619,0.18157058,110150.0,110140.0,3.0]
[1761057352858,0.1906491,110150.0,110140.0,0.12994679]
[1761057353012,0.1906491,110150.0,110140.0,0.61199664]
[1761057353450,0.1906491,110150.0,110140.0,0.12994679]
[1761057353631,0.1906491,110150.0,110140.0,0.61299664]
[1761057353829,0.1906491,110150.0,110140.0,0.13094679]
[1761057354031,0.1906491,110150.0,110140.0,0.1209468]
[1761057354228,0.1906491,110150.0,110140.0,0.1199468]
[1761057354552,0.1906491,110150.0,110140.0,0.12994679]
[1761057354755,0.1906491,110150.0,110140.0,0.01014679]
[1761057354952,0.1906491,110150.0,110140.0,0.12994679]
[1761057355355,0.1906491,110150.0,110140.0,0.61199664]
[1761057355541,0.1906491,110150.0,110140.0,0.12994679]
[1761057355741,0.19066477,110160.0,110140.0,0.61199664]
[1761057355939,0.18157058,110150.0,110140.0,0.61199664]
[1761057358285,0.18157058,110150.0,110140.0,0.60199665]
[1761057358494,0.18157058,110150.0,110140.0,0.12994679]
[1761057358902,0.18157058,110150.0,110140.0,0.01014679]
[1761057359209,0.18157058,110150.0,110140.0,0.12994679]
[1761057359413,0.18157058,110150.0,110140.0,0.62708406]
[1761057359624,1.09343944,110150.0,110140.0,0.0001468]
[1761057359830,0.18160355,110130.0,110120.0,0.13224432]
[1761057360035,0.18160355,110130.0,110120.0,0.02493297]
[1761057360358,0.29475414,110130.0,110120.0,0.01493298]
[1761057360917,0.18160355,110130.0,110120.0,0.60478283]
[1761057361118,0.18160355,110130.0,110120.0,0.61478282]
[1761057361653,0.18160187,110140.0,110130.0,0.00999999]
[1761057361858,0.18160187,110140.0,110130.0,0.51021019]
[1761057361989,0.1906491,110150.0,110140.0,0.00999999]
[1761057362189,0.1906491,110150.0,110140.0,0.61184984]
[1761057362393,0.19066477,110160.0,110150.0,0.00999999]
[1761057362896,0.19066477,110160.0,110140.0,0.1198]
[1761057362897,0.18157058,110150.0,110140.0,0.00999999]
[1761057363097,0.18157058,110150.0,110130.0,0.00999999]
[1761057363098,0.18158707,110140.0,110130.0,0.00999999]
[1761057363349,0.18158707,110140.0,110130.0,0.1198]
[1761057363524,0.18158707,110140.0,110130.0,0.12979999]
[1761057364262,0.18158707,110140.0,110130.0,0.60184985]
[1761057364469,0.18158707,110140.0,110130.0,0.12979999]
[1761057364770,0.18158707,110140.0,110130.0,0.61184984]
[1761057365201,0.18158707,110140.0,110130.0,0.60184985]
[1761057365631,0.18158707,110140.0,110130.0,0.61184984]
[1761057368495,0.18157058,110150.0,110140.0,0.00999999]
[1761057368688,0.18157058,110150.0,110140.0,0.49204984]
[1761057369236,0.18157058,110150.0,110140.0,0.00999999]
[1761057369470,0.18157778,110170.0,110150.0,0.18156952]
[1761057369684,0.18157778,110170.0,110160.0,0.60593184]
[1761057369685,0.18153762,110170.0,110160.0,0.60593184]
[1761057369936,0.18153762,110170.0,110160.0,0.12388199]
[1761057370351,0.18153762,110170.0,110160.0,0.60593184]
[1761057370557,0.19059719,110180.0,110170.0,0.00154507]
[1761057371009,0.18153762,110170.0,110160.0,0.00154507]
[1761057371206,0.18153762,110170.0,110160.0,0.12134507]
[1761057371648,0.18153762,110170.0,110160.0,0.1198]
[1761057371856,0.18153762,110170.0,110160.0,0.12134507]
[1761057372284,0.19074383,110180.0,110160.0,0.12134507]
[1761057372500,0.00014664,110180.0,110170.0,0.66513254]
[1761057372732,0.00014664,110180.0,110170.0,0.75495155]
[1761057372998,0.00014664,110180.0,110170.0,0.76659041]
[1761057373206,0.00014664,110180.0,110170.0,0.75495155]
[1761057374271,0.00014664,110180.0,110170.0,0.75595155]
[1761057374482,0.00014664,110180.0,110170.0,0.75695155]
[1761057374690,0.00014664,110180.0,110170.0,1.09695155]
[1761057375404,1.12971892,110180.0,110170.0,0.002]
[1761057375667,0.64766907,110180.0,110170.0,0.002]
[1761057375888,0.27148679,110180.0,110170.0,0.00488]
[1761057376388,0.18153762,110170.0,110160.0,1e-08]
[1761057376595,0.18160355,110130.0,110120.0,0.48449418]
[1761057376798,0.18160355,110130.0,110120.0,1.21569324]
[1761057377000,0.18160355,110130.0,110120.0,1.05733187]
[1761057377204,0.18160355,110130.0,110120.0,0.71733187]
[1761057377412,0.18160355,110130.0,110120.0,0.23528202]
[1761057377614,0.18160355,110130.0,110120.0,0.14546301]
[1761057377820,0.18160355,110130.0,110120.0,0.62800151]
[1761057378042,3.15681541,110130.0,110060.0,0.1113463]
[1761057378252,0.19078506,110090.0,110070.0,0.60180985]
[1761057378461,0.19078506,110090.0,110080.0,0.48204985]
[1761057378684,0.19078506,110090.0,110080.0,0.49030231]
[1761057378891,0.19078506,110090.0,110080.0,0.5146278]
[1761057379501,0.19078506,110090.0,110080.0,0.5147602]
[1761057380120,0.18166954,110090.0,110080.0,0.77462639]
[1761057380324,0.18166954,110090.0,110080.0,0.59294035]
[1761057380767,0.18166954,110090.0,110080.0,0.59394035]
[1761057380970,0.18166954,110090.0,110080.0,0.77562639]
[1761057381185,0.18166954,110090.0,110080.0,0.59394035]